Cogmind - Beta 13 @@@ ROGUE MODE // 2024.06.29 @ 15:01:23 Player: ovsyanka Result: Self-destructed Performance ------------- Evolutions (3) 1500 Regions Visited (6) 1200 Robots Destroyed (65) 325 Value Destroyed (1885) 1885 Prototype IDs (25) 500 Alien Tech Used (0) 0 Bonus (405) 405 TOTAL SCORE: 5815 Bonus ------- High Alert Combat Kills 105 Aligned with FarCom 300 Cogmind --------- Core Integrity 700/700 Matter 290/300 Energy 160/160 System Corruption 0% Temperature Cool (0) Movement Flying (34) Location -7/Factory Parts ------- > --- POWER (1) -------- Light Nuclear Core > --- PROPULSION (4) --- Xenon Bombardment Thruster Xenon Bombardment Thruster Xenon Bombardment Thruster > --- UTILITY (6) ------ Improved Terrain Scanner Targeting Computer Light Armor Plating Hacking Suite Hacking Suite Hacking Suite > --- WEAPON (2) ------- Heavy Mace Axe > --- INVENTORY (5) ---- Light Nuclear Core Improved Sensor Array ECM Suite Improved Utility Shielding Peak State ------------ > --- POWER ------------ Heavy Deuterium Engine > --- PROPULSION ------- Light Treads Light Treads Light Treads > --- UTILITY ---------- High-capacity Storage Unit Targeting Computer Core Analyzer Armor Integrity Analyzer Particle Charger > --- WEAPON ----------- AWS/Thermal > --- INVENTORY -------- Light Nuclear Core Light Nuclear Core Xenon Bombardment Thruster Xenon Bombardment Thruster Xenon Bombardment Thruster Improved Cooling System Large Storage Unit Structural Scanner Improved Sensor Array Improved Terrain Scanner Terrain Scan Processor ECM Suite Improved Utility Shielding Light Armor Plating Hacking Suite Hacking Suite Hacking Suite Light Assault Rifle Grenade Launcher Axe [Rating: 42] Favorites ----------- Power Light Ion Engine Engine Light Ion Engine Power Core Light Nuclear Core Propulsion Light Treads Treads Light Treads Leg Aluminum Leg Wheel Compact Wheel Flight Unit Xenon Bombardment Thruster Utility Large Storage Unit Device Improved Heat Sink Storage Large Storage Unit Processor Targeting Computer Hackware Hacking Suite Protection Improved Medium Armor Plating Weapon AWS/Thermal Energy Gun AWS/Thermal Ballistic Gun Light Assault Rifle Ballistic Cannon Light Cannon Launcher Grenade Launcher Impact Weapon Heavy Mace Slashing Weapon Axe Build | -11 -10 -10 -10 -9 -8 -7 ------- Run | Yrd Mat Min Exi Min Mat Fac Slots Evolved 6 | . . . . . 4 2 Power . | . . . . . . . Propulsion 2 | . . . . . 1 1 Utility 4 | . . . . . 3 1 Weapon . | . . . . . . . Parts Attached 73 | 8 22 . 1 7 26 9 Power 11 | 1 4 . . 1 4 1 Engine 10 | 1 4 . . 1 4 . Core 1 | . . . . . . 1 Reactor . | . . . . . . . Propulsion 15 | 2 6 . . 2 5 . Treads 8 | 2 2 . . 2 2 . Leg 1 | . 1 . . . . . Wheel 3 | . 3 . . . . . Hover . | . . . . . . . Flight 3 | . . . . . 3 . Utility 23 | 3 5 . . 2 7 6 Device 9 | 2 2 . . 1 2 2 Storage 6 | 1 3 . . . 2 . Processor 3 | . . . . . 3 . Hackware 3 | . . . . . . 3 Protection 2 | . . . . 1 . 1 Artifact . | . . . . . . . Weapon 24 | 2 7 . 1 2 10 2 Energy Gun 11 | 1 5 . 1 1 3 . Energy Cannon . | . . . . . . . Ballistic Gun 3 | 1 . . . . 2 . Ballistic Cannon 4 | . 2 . . . 2 . Launcher 4 | . . . . 1 3 . Special Weapon . | . . . . . . . Impact Weapon 1 | . . . . . . 1 Slashing Weapon 1 | . . . . . . 1 Piercing Weapon . | . . . . . . . Special Melee Weapon . | . . . . . . . Unidentified Prototypes 2 | . . . . . 2 . Corrupted Parts 3 | . . . . . 3 . System Corruption 13 | . . . . . 13 . Parts Lost 11 | . 1 . . 1 8 1 Power . | . . . . . . . Propulsion 4 | . 1 . . . 3 . Utility 6 | . . . . 1 4 1 Weapon 1 | . . . . . 1 . Highest Loss Streak 7 | . 1 . . 1 7 1 To Critical Strikes 1 | . . . . . 1 . Average Slot Usage (%) 85 | . 99 100 93 84 76 88 Engine 11 | . 14 14 14 14 8 . Treads 23 | . 17 28 28 28 26 . Wheel 2 | . 9 . . . . . Flight 1 | . . . . . . 23 Device 6 | . 13 14 14 . 4 6 Storage 11 | . 14 14 14 14 9 . Processor 6 | . . . . . 14 7 Hackware 1 | . . . . . . 22 Protection 5 | . . . . 13 4 6 Energy Gun 8 | . 8 . 6 13 8 . Ballistic Cannon 5 | . 17 28 15 . . . Naked Turns . | . . . . . . . Heaviest Build 62 | 12 33 30 32 42 62 15 Greatest Support 60 | 40 40 40 40 40 60 18 Greatest Overweight (x) 2 | . 2 . . 1 1 . Average Overweight (x) . | . . . . . . . Largest Inventory Capacity 20 | 8 15 15 15 15 20 15 Average Capacity 15 | 7 14 15 15 15 16 5 Most Carried 20 | 7 15 15 15 15 20 15 Average Carried 14 | 4 14 15 15 14 15 5 Final Capacity 15 | 8 15 15 15 15 15 5 Final Carried 15 | 7 15 15 15 15 15 4 Class Distribution -------------------- 82% | Mutant 13% | Scavenger-Mutant 3% | Hacker-Mutant Dominant Class ---------------- Mutant | -10/Materials Mutant | -10/Mines Mutant | -10/Exiles Mutant | -9/Mines Mutant | -8/Materials Hacker-Mutant | -7/Factory Resources | -11 -10 -10 -10 -9 -8 -7 ----------- Run | Yrd Mat Min Exi Min Mat Fac Matter Collected 1229 | 289 223 . . 145 485 87 Remotely . | . . . . . . . Salvage Created 2241 | 118 688 . . 161 1147 127 Parts 133 | 17 37 . . 9 70 . Haulers Intercepted 3 | . 2 . . . 1 . Recyclers Shooed 5 | 1 . . . . 4 . Parts Field Recycled . | . . . . . . . Retrieved Matter . | . . . . . . . Parts Self-Destructed . | . . . . . . . Prevented . | . . . . . . . Kills | -11 -10 -10 -10 -9 -8 -7 ------- Run | Yrd Mat Min Exi Min Mat Fac Combat Hostiles Destroyed 42 | . 12 . . 6 23 1 Guns 29 | . 10 . . 6 13 . Cannons 4 | . 2 . . . 2 . AOE 8 | . . . . . 8 . Classes Destroyed 17 | 2 5 . . 2 6 2 Worker 5 | . 1 . . . 2 2 Builder 2 | . 1 . . . . 1 Tunneler 4 | 3 1 . . . . . Hauler 3 | . 2 . . . 1 . Recycler 3 | 1 . . . . 2 . Mechanic 1 | . . . . . . 1 Operator 4 | . 2 . . . 2 . Watcher 5 | . . . . . 5 . Swarmer 4 | . . . . . 4 . Grunt 19 | . 12 . . . 7 . Brawler 1 | . . . . . 1 . Protector 1 | . . . . . 1 . Sentry 6 | . . . . 2 4 . Specialist 4 | . . . . . 4 . Hunter 2 | . . . . . 2 . Programmer 1 | . . . . . . 1 Assembled 4 | . . . . 4 . . Best Kill Streak 5 | 4 4 . . 2 5 2 Combat Bots Only 4 | . 4 . . 2 4 1 Max Kills in Single Turn 2 | 1 2 . . 1 2 1 Gunslinging 1 | . 1 . . . . . Exploded 2 | . . . . . 2 . Melee . | . . . . . . . Uniques/NPCs Destroyed . | . . . . . . . Combat | -11 -10 -10 -10 -9 -8 -7 -------- Run | Yrd Mat Min Exi Min Mat Fac Hostile Shots Fired 189 | . 59 . . 9 96 25 Missed 49 | . 14 . . 1 23 11 Damage Taken 2388 | . 585 . . 197 1405 201 Core 382 | . 84 . . 29 269 . Absorbed by Shields 8 | . . . . . . 8 Core Remaining (%) 68 | 100 . . . 54 51 . Volleys Fired 120 | 9 59 . . . 52 . Largest 2 | 2 2 . . . 2 . Hottest 115 | 70 115 . . . 103 . Shots Fired 280 | 18 118 . . 19 125 . Gun 244 | 18 108 . . 19 99 . Cannon 19 | . 10 . . . 9 . Launcher 17 | . . . . . 17 . Special . | . . . . . . . Kinetic 82 | 9 38 . . . 35 . Thermal 181 | 9 80 . . 19 73 . Explosive 17 | . . . . . 17 . Electromagnetic . | . . . . . . . Robot Hit Streak 22 | 4 15 . . 5 22 . Robot Miss Streak 4 | 4 2 . . 1 3 . Penetration Max . | . . . . . . . Secondary Targets 2 | . 2 . . . . . Max Gunslinging Chain 1 | . 1 . . . . . Autonomous 83 | . . . . 19 64 . Shots Hit Robots 219 | 8 87 . . 15 95 14 Core Hits 98 | 5 32 . . 6 54 1 Critical Kills 1 | . 1 . . . . . Critical Parts Destroyed 2 | . . . . . . 2 Critical Strikes 11 | . 6 . . . 3 2 Burn 5 | . 4 . . . 1 . Destroy 1 | . 1 . . . . . Blast 3 | . 1 . . . 2 . Smash 2 | . . . . . . 2 Melee Attacks 33 | . . . . . . 33 Impact 22 | . . . . . . 22 Slashing 11 | . . . . . . 11 Piercing . | . . . . . . . Sneak Attacks 6 | . . . . . . 6 Combat Hostiles . | . . . . . . . Follow-up Attacks 1 | . . . . . . 1 Damage Inflicted 5764 | 91 1104 . . 431 3306 832 Guns 3507 | 91 1018 . . 431 1967 . Cannons 315 | . 86 . . . 229 . Explosions 1108 | . . . . . 1108 . Melee 832 | . . . . . . 832 Ramming 2 | . . . . . 2 . Kinetic 667 | 16 262 . . . 389 . Thermal 3488 | 75 842 . . 431 2140 . Explosive 775 | . . . . . 775 . Electromagnetic . | . . . . . . . Impact 575 | . . . . . . 575 Slashing 257 | . . . . . . 257 Piercing . | . . . . . . . Highest Corruption 22 | . . . . 1 22 . Average Corruption 1 | . . . . 1 2 . Corruption Purged . | . . . . . . . Corruption Blocked . | . . . . . . . Effects 19 | . . . . 11 8 . Message Errors 5 | . . . . 1 4 . Matter Fused 5 | . . . . 3 2 . Energy Discharges 6 | . . . . 6 . . Data Loss (minor) 2 | . . . . 1 1 . Alerts 1 | . . . . . 1 . Overload Shots . | . . . . . . . Overflow Damage 460 | . . . . . 30 430 Projectiles . | . . . . . . . Explosions 30 | . . . . . 30 . Melee 430 | . . . . . . 430 Knockbacks 6 | . . . . . 2 4 Impact 4 | . . . . . . 4 Kinetic 2 | . . . . . 2 . Secondary . | . . . . . . . Self-Inflicted Damage 236 | . . . . . 236 . Shots 6 | . . . . . 6 . Rammed . | . . . . . . . Targets Rammed 1 | . . . . . 1 . Kicked . | . . . . . . . Crushed 1 | . . . . . 1 . Highest Temperature 116 | 40 116 . . . 11 . Average Temperature 34 | 20 41 . . . 4 . Received Heat Transfer 687 | . 345 . . 27 315 . Siege Activations . | . . . . . . . Robots Corrupted . | . . . . . . . Combat Hostiles . | . . . . . . . Parts Fried 3 | . . . . . . 3 Impact Corruptions 13 | . . . . . . 13 Robots Melted . | . . . . . . . Combat Hostiles . | . . . . . . . Parts Melted 13 | . 4 . . 1 8 . Heat Transferred 5755 | 222 2553 . . 555 2425 . Parts Sabotaged . | . . . . . . . Parts Stolen . | . . . . . . . Parts Stripped . | . . . . . . . Power Chain Reactions . | . . . . . . . Alert | -11 -10 -10 -10 -9 -8 -7 ------- Run | Yrd Mat Min Exi Min Mat Fac Peak Influence 583 | 20 258 12 . 57 583 386 Initial 263 | . 13 12 . . 22 263 Average 121 | 8 80 12 . 7 194 323 Maximum Alert Level 2 | . 1 . . . 2 1 Low Security (%) 70 | 100 93 100 . 100 47 . Level 1 24 | . 6 . . . 41 100 Level 2 5 | . . . . . 11 . Level 3 . | . . . . . . . Level 4 . | . . . . . . . Level 5 . | . . . . . . . High Security . | . . . . . . . Max Security . | . . . . . . . Squads Dispatched 7 | . 2 . . . 4 1 Investigation . | . . . . . . . Extermination 1 | . . . . . . 1 Reinforcement 5 | . 2 . . . 3 . Assault 1 | . . . . . 1 . Garrison . | . . . . . . . Intercept . | . . . . . . . Searches Triggered . | . . . . . . . Construction Impeded 1 | . . . . . 1 . Haulers Reinforced . | . . . . . . . Active Scanning Responses . | . . . . . . . Cargo Convoy Interrupts . | . . . . . . . Stealth | -11 -10 -10 -10 -9 -8 -7 --------- Run | Yrd Mat Min Exi Min Mat Fac Distress Signals 7 | . 2 . . 3 1 1 Communications Jammed . | . . . . . . . Distress Signals . | . . . . . . . Times Spotted 74 | . 26 . . 5 34 9 Peak Tracking Total 6 | . 6 . . 2 5 4 Tactical Retreats 3 | . 2 . . . . 1 Traps | -11 -10 -10 -10 -9 -8 -7 ------- Run | Yrd Mat Min Exi Min Mat Fac Traps Triggered 5 | . . . . 1 1 3 Indirectly . | . . . . . . . Trap Hack Attempts . | . . . . . . . Triggered . | . . . . . . . Disarmed . | . . . . . . . Reprogrammed . | . . . . . . . Reused . | . . . . . . . Traps Extracted . | . . . . . . . Installed . | . . . . . . . Triggered . | . . . . . . . Machines | -11 -10 -10 -10 -9 -8 -7 ---------- Run | Yrd Mat Min Exi Min Mat Fac Machines Disabled 3 | . . . . . 3 . Max in Single Turn 2 | . . . . . 2 . Machines Repaired . | . . . . . . . Machines Dismantled . | . . . . . . . Machines Sabotaged . | . . . . . . . Overloaded Fab Kills . | . . . . . . . Hacking | -11 -10 -10 -10 -9 -8 -7 --------- Run | Yrd Mat Min Exi Min Mat Fac Machines Accessed 6 | . 1 . 2 1 . 2 Terminals 2 | . 1 . . . . 1 Fabricators 1 | . . . . . . 1 Repair Stations . | . . . . . . . Recycling Units . | . . . . . . . Scanalyzers . | . . . . . . . Garrison Access . | . . . . . . . Total Hacks 9 | . 3 . 2 1 . 3 Successful 7 | . 3 . 2 1 . 1 Failed 2 | . . . . . . 2 Catastrophic . | . . . . . . . Database Lockouts . | . . . . . . . Manual 3 | . 2 . 1 . . . Terminals 4 | . 3 . . . . 1 Fabricators 2 | . . . . . . 2 Repair Stations . | . . . . . . . Recycling Units . | . . . . . . . Scanalyzers . | . . . . . . . Garrison Access . | . . . . . . . Terminal Hacks 6 | . 3 . 2 1 . . Record 2 | . 1 . 1 . . . Robot Analysis 2 | . 2 . . . . . Open Door 1 | . . . . 1 . . Derelict Proto ID Bank 1 | . . . 1 . . . Fabricator Hacks 1 | . . . . . . 1 Network Status 1 | . . . . . . 1 Repair Station Hacks . | . . . . . . . Recycling Unit Hacks . | . . . . . . . Scanalyzer . | . . . . . . . Garrison Access Hacks . | . . . . . . . Unauthorized Hacks . | . . . . . . . Terminals . | . . . . . . . Fabricators . | . . . . . . . Repair Stations . | . . . . . . . Recycling Units . | . . . . . . . Scanalyzers . | . . . . . . . Garrison Access . | . . . . . . . Data Cores Recovered 2 | . . . . . 2 . Used . | . . . . . . . Hacking Detections 2 | . . . . . . 2 Full Trace Events . | . . . . . . . Feedback Events . | . . . . . . . Feedback Blocked . | . . . . . . . Robot Schematics Acquired . | . . . . . . . Robots Built . | . . . . . . . Authchips . | . . . . . . . Time . | . . . . . . . Total Robot Build Rating . | . . . . . . . Part Schematics Acquired . | . . . . . . . Parts Built . | . . . . . . . Authchips . | . . . . . . . Time . | . . . . . . . Total Part Build Rating . | . . . . . . . Parts Repaired . | . . . . . . . Time . | . . . . . . . Parts Recycled . | . . . . . . . Recycled Matter . | . . . . . . . Retrieved Matter . | . . . . . . . Retrieved Components . | . . . . . . . Parts Scanalyzed . | . . . . . . . Part Schematics Acquired . | . . . . . . . Parts Damaged . | . . . . . . . Bothacking | -11 -10 -10 -10 -9 -8 -7 ------------ Run | Yrd Mat Min Exi Min Mat Fac Used RIF Installer . | . . . . . . . Robots Hacked . | . . . . . . . Non-combat . | . . . . . . . Combat . | . . . . . . . Robot Hacks Applied . | . . . . . . . Relay Couplers Released . | . . . . . . . Fabnet Peak Effective % . | . . . . . . . Robots Rewired . | . . . . . . . Allies Hacked . | . . . . . . . Hacks Repelled . | . . . . . . . Allies | -11 -10 -10 -10 -9 -8 -7 -------- Run | Yrd Mat Min Exi Min Mat Fac Total Allies . | . . . . . . . Largest Group . | . . . . . . . Highest-Rated Group . | . . . . . . . Highest-Rated Ally . | . . . . . . . Total Orders . | . . . . . . . Ally Attacks . | . . . . . . . Total Damage . | . . . . . . . Kills . | . . . . . . . Allies Corrupted . | . . . . . . . Allies Melted . | . . . . . . . Intel | -11 -10 -10 -10 -9 -8 -7 ------- Run | Yrd Mat Min Exi Min Mat Fac Robot Analysis Total 2 | . 2 . . . . . Derelict Logs Recovered 1 | . . 1 . . . . Drone Launches . | . . . . . . . Drone Recoveries . | . . . . . . . Exploration | -11 -10 -10 -10 -9 -8 -7 ------------- Run | Yrd Mat Min Exi Min Mat Fac Turns Passed 7853 | 144 1661 143 353 1852 3362 338 Spaces Moved 3042 | 68 691 90 220 549 936 488 Core 7 | 7 . . . . . . Treads 2046 | 61 246 90 220 549 880 . Legs . | . . . . . . . Wheels 445 | . 445 . . . . . Hover . | . . . . . . . Flight 544 | . . . . . 56 488 Fastest Speed 34 | 50 110 160 160 160 114 34 Average Speed 146 | 148 133 160 160 171 196 34 Slowest Speed 240 | 160 240 160 160 240 240 34 Overloaded Moves . | . . . . . . . Propulsion Burnouts . | . . . . . . . Robots Hopped . | . . . . . . . Cave-ins Triggered . | . . . . . . . Exploration Rate (%) 44 | 5 85 18 60 65 64 15 Regions Visited 6 Branch Regions 3 Pre-discovered Areas 1 | . . . 1 . . . Known Exits Taken . | . . . . . . . Unknown Exits Taken 6 | 1 1 1 1 1 1 . Scrap Searched 1 | . . . . 1 . . Spaces Dug 8 | . . . . . . 8 Terrain Destroyed 104 | . . . . 4 92 8 Melee 8 | . . . . . . 8 Projectile 16 | . . . . 4 12 . AOE 80 | . . . . . 80 . Terrain Rammed . | . . . . . . . Walls Destroyed . | . . . . . . . Machines Disabled . | . . . . . . . Actions | -11 -10 -10 -10 -9 -8 -7 --------- Run | Yrd Mat Min Exi Min Mat Fac Total 6212 | 91 1324 89 222 1464 2415 607 Wait 2780 | . 507 . . 896 1357 20 Move 3036 | 67 690 89 219 548 935 488 Hop . | . . . . . . . Pick Up 50 | 7 20 . . 4 18 1 Fast Attach 28 | 7 7 . 1 2 10 1 Attach 18 | . 1 . . 1 9 7 Detach 4 | . . . . 1 3 . Swap 27 | 1 14 . . 4 7 1 Drop 64 | . 26 . 2 8 23 5 Fire 120 | 9 59 . . . 52 . Melee 30 | . . . . . . 30 Ram . | . . . . . . . Kick . | . . . . . . . Crush 1 | . . . . . 1 . Escape Stasis 54 | . . . . . . 54 Rewire . | . . . . . . . Trap . | . . . . . . . Miscellaneous . | . . . . . . . Route ------- -11/Scrapyard -10/Materials (discovered 4 exits: [*Mat x2] / [*Min x2]) -10/Mines -10/Exiles -9/Mines (discovered 2 exits: [*Mat x2]) -8/Materials (discovered 2 exits: *Fac x2) -7/Factory History --------- Turn | Location | Event 7 | -11/Scrapyard | Discovered new exit (range 15) 145 | -11/Scrapyard | Entered Materials 300 | -10/Materials | Build established: Mutant 793 | -10/Materials | Discovered new exit (range 14) 832 | -10/Materials | Discovered new exit (range 16) 1518 | -10/Materials | Discovered new exit (range 15) 1625 | -10/Materials | Discovered new exit (range 13) 1806 | -10/Materials | Entered Mines 1819 | -10/Mines | Learned Materials emergency access door positions 1858 | -10/Mines | Found a hidden stash of uninstalled traps 1939 | -10/Mines | Deemed a non-threat by the Exiles lab entrance 1941 | -10/Mines | Discovered new exit (range 5) 1949 | -10/Mines | Entered Exiles 1988 | -10/Exiles | Met 8R-AWN 2015 | -10/Exiles | Met EX-HEX 2069 | -10/Exiles | Met EX-BIN 2089 | -10/Exiles | Aligned with FarCom system 2090 | -10/Exiles | Given EX-Vault access code 2133 | -10/Exiles | Opened EX-Vault 2146 | -10/Exiles | Found AWS/Thermal 2179 | -10/Exiles | Warned to stay clear of 0b10 Research branches 2230 | -10/Exiles | Met EX-DEC 2237 | -10/Exiles | Learned location of Zion (-6) 2290 | -10/Exiles | Discovered new exit (range 10) 2302 | -10/Exiles | Left Exiles lab with AWS/Thermal 2302 | -10/Exiles | Entered Mines 2303 | -9/Mines | Met a Derelict bent on vengeance 2308 | -9/Mines | Met a Derelict who couldn't figure out how to use a Trap Extractor 2509 | -9/Mines | Assembled infested the area 4140 | -9/Mines | Discovered new exit (range 3) 4151 | -9/Mines | Discovered new exit (range 13) 4154 | -9/Mines | Entered Materials 4154 | -8/Materials | Evolved 4 slots: Propulsion x1, Utility x3 5967 | -8/Materials | Build established: Scavenger-Mutant 6336 | -8/Materials | Discovered new exit (range 15) 6988 | -8/Materials | Discovered new exit (range 8) 7019 | -8/Materials | Build established: Mutant 7354 | -8/Materials | First assault squad dispatched 7446 | -8/Materials | Lost 7 parts (3n3u1w) 7448 | -8/Materials | System corruption reached 10% 7516 | -8/Materials | Entered Factory 7516 | -7/Factory | Evolved 2 slots: Propulsion x1, Utility x1 7821 | -7/Factory | Build established: Hacker-Mutant 7854 | -7/Factory | Self-destructed Last Messages --------------- 07823_ Door malfunctions. 07826_ U-05 Engineer repairs door. 07826_ P-60 Hacker knocked back. 07829_ P-60 Hacker suffers critical hit (Smash). 07829_ Destroyed Imp. Heat Sink. 07829_ Destroyed Target Analyzer. 07829_ P-60 Hacker system corrupted by crushing effect. 07829_ P-60 Hacker system corrupted by crushing effect. 07829_ P-60 Hacker knocked back. 07830_ P-60 Hacker system terminally corrupted. 07832_ K-01 Serf collects debris. 07838_ U-05 Engineer lays Concrete. 07846_ K-01 Serf collects debris. 07850_ Destroyed VTOL Module. 07850_ S-27 Virus system corrupted by crushing effect. 07850_ S-27 Virus knocked back. 07853_ K-01 Serf collects debris. Map ----- +----------------------------------------------------+ | ??????????????????????????????????????????## | | ?????????????????????################?????## | | ?????????????????????################?????## | | ?????????????????????## ##?????## | | ?????????????????????## ##?????## | | ?????????????????????## ##?????######"# | | ?????????????????????## ! ##?????##### | | ?????????????????????## ##????????## | | ?????????????????????## ! ##????????## | | ?????????????????????## [##????????##"" | | ?????????????????????## * ##????????##"" | | ?????????????????????## ##????????##""" | | ?????????????????????## ##????????##""" | | ?????????????????????## ##????????##""" | | ??????????????????##### ############ | | ###??##################"#####+#################### | | ###??############### | | ##??## # | | ##??## """ """ # | | ##??## """ """ # ^ | | ##??## """ """ # | | ##??## # s #####s################### | | ##??## """ """ # # ############ | | ##??## """ """ # # #??????????? | | ##??## """ """ + s# r ##?????????? | | ##??## # @ ##?????????? | | ##??## # # ##?????????? | | ##??## # # k ##?????????? | | ###### # # ##?????????? | | ########+########### # ##?????????? | | u # ##?????????? | | ^ # ##?????????? | | ^^ # ##?????????? | | # ##?????????? | | ###############?????????? | | ##+########## ##############??????????? | | ## ##???#??????????????????? | | ## ????????????????????? | | ! ## ??????????????????? | | ## ??????????????????? | | """""" ## ??????????????????? | | """""" ## ??????????????????? | | """""" ###########+########??????????????????? | | """""" ###### ?????????????????????? | | #############??????????? ???????????????????????? | | "" ###????????????????????????????????????? | | R" ##?????????????????????????????????????? | | " """" ##?????????????????????????????????????? | | """" ##?????????????????????????????????????? | | ! """" ##?????????????????????????????????????? | +----------------------------------------------------+ Best States ------------- Heat Dissipation 58 Energy Generation 18 Energy Capacity 375 Matter Stores 300 Matter Capacity 300 Sight Range 16 Terrain Scan Range 16 Terrain Scan Density 10 Armor Coverage 225 Evasion (%) 63 Targeting Accuracy 5 Core Analysis 6 Armor Integrity Analysis 30 Recoil Reduction 3 Particle Charging 15 Offensive Hacking 30 Item Schematics ----------------- None Robot Schematics ------------------ None Fabricated ------------ Nothing Alien Tech Used ----------------- None Achievements -------------- None Challenges ------------ None Game ------ Seed RagnarokThrowingBoregun Manual? 0 Play Time 01:22:36 Cumulative 56.0 hours Start 2024.06.25 @ 10:06:35 End 2024.06.29 @ 15:01:23 Sessions 4 Manual Loads 0 Difficulty Rogue Special Mode None Game No. 38 Rogue 25 Adventurer 13 Explorer 0 Win Type - Total 0 Types 0/0/0/0/0/0/0/0/0 Lore% 24 Gallery% 40 Achievement% 34 Wizard Run 0 Options --------- Layout 2 ASCII 0 Keyboard 1 Movement Numpad Keybinds 0 Fullscreen 2 Font 16/Swanston Map View 55x47 Zoom Use 0% Tactical HUD 1 Map Filters NONE Filters NONE Steam 0 RUN: ebb1307b-1cf9-4dc9-b554-6bfaaef6da7b